[Event "*** Titled Tuesday Blitz"]
[Site "Chess.com"]
[Date "2020.04.21"]
[Round "7"]
[White "KhamzinOlzhas"]
[Black "GM4life"]
[Result "1-0"]
[WhiteElo "2555"]
[BlackElo "2202"]
[TimeControl "180+1"]
[EndTime "11:22:33 PDT"]
[Termination "KhamzinOlzhas won by checkmate"]

1. e4 {[%clk 0:03:00.9]} 1... c5 {[%clk 0:02:59]} 2. Nc3 {[%clk 0:02:59.3]} 2...
d6 {[%clk 0:02:58.6]} 3. g3 {[%clk 0:02:59.6]} 3... g6 {[%clk 0:02:58.4]} 4. Bg2
{[%clk 0:02:59.9]} 4... Bg7 {[%clk 0:02:59.3]} 5. d3 {[%clk 0:03:00.5]} 5... Nc6
{[%clk 0:02:59.8]} 6. Be3 {[%clk 0:03:00.7]} 6... e6 {[%clk 0:03:00.7]} 7. Qd2
{[%clk 0:03:00.5]} 7... Nd4 {[%clk 0:02:59.5]} 8. Nd1 {[%clk 0:02:40.8]} 8... e5
{[%clk 0:02:41.1]} 9. c3 {[%clk 0:02:38.5]} 9... Ne6 {[%clk 0:02:41.2]} 10. Ne2
{[%clk 0:02:34]} 10... Ne7 {[%clk 0:02:38.8]} 11. Bh6 {[%clk 0:02:34.2]} 11...
O-O {[%clk 0:02:37.3]} 12. Bxg7 {[%clk 0:02:28.2]} 12... Kxg7 {[%clk 0:02:34.5]}
13. O-O {[%clk 0:02:23.7]} 13... d5 {[%clk 0:02:33.7]} 14. exd5 {[%clk
0:02:18.4]} 14... Nxd5 {[%clk 0:02:33.7]} 15. Ne3 {[%clk 0:02:19.3]} 15... Nec7
{[%clk 0:02:28.9]} 16. Nc4 {[%clk 0:02:09.6]} 16... Qe7 {[%clk 0:02:26.4]} 17.
f4 {[%clk 0:02:06.9]} 17... exf4 {[%clk 0:02:23.8]} 18. Nxf4 {[%clk 0:02:07.8]}
18... Nxf4 {[%clk 0:01:56.6]} 19. Qxf4 {[%clk 0:02:08.7]} 19... Ne6 {[%clk
0:01:55.6]} 20. Qe3 {[%clk 0:02:00]} 20... Rb8 {[%clk 0:01:51.4]} 21. Qe5+
{[%clk 0:01:52.5]} 21... Kg8 {[%clk 0:01:47.1]} 22. Qxb8 {[%clk 0:01:53.4]}
22... b5 {[%clk 0:01:28.7]} 23. Qd6 {[%clk 0:01:53.7]} 23... Qg5 {[%clk
0:01:25.8]} 24. Qe5 {[%clk 0:01:51.5]} 24... bxc4 {[%clk 0:01:15.8]} 25. Qxg5
{[%clk 0:01:52]} 25... Nxg5 {[%clk 0:01:15.9]} 26. dxc4 {[%clk 0:01:52.9]} 26...
Be6 {[%clk 0:01:14.4]} 27. Bd5 {[%clk 0:01:51.4]} 27... Bh3 {[%clk 0:01:12.8]}
28. Rfe1 {[%clk 0:01:41]} 28... Be6 {[%clk 0:01:11.9]} 29. b4 {[%clk 0:01:39.6]}
29... Bxd5 {[%clk 0:01:11.2]} 30. cxd5 {[%clk 0:01:39.6]} 30... cxb4 {[%clk
0:01:11.7]} 31. cxb4 {[%clk 0:01:39.1]} 31... Nf3+ {[%clk 0:01:12.1]} 32. Kf2
{[%clk 0:01:39.7]} 32... Nxe1 {[%clk 0:01:12.7]} 33. Rxe1 {[%clk 0:01:40.1]}
33... Rd8 {[%clk 0:01:08.2]} 34. Rd1 {[%clk 0:01:39]} 34... Rd6 {[%clk
0:01:06.2]} 35. a4 {[%clk 0:01:36.8]} 35... Kf8 {[%clk 0:01:06.4]} 36. Ke3
{[%clk 0:01:36.8]} 36... Ke7 {[%clk 0:01:06.1]} 37. Kd4 {[%clk 0:01:37.3]} 37...
Ra6 {[%clk 0:01:04]} 38. a5 {[%clk 0:01:37.1]} 38... Rf6 {[%clk 0:01:00]} 39.
Kc5 {[%clk 0:01:37.1]} 39... Rf2 {[%clk 0:00:57.7]} 40. d6+ {[%clk 0:01:25.2]}
40... Kd7 {[%clk 0:00:56.7]} 41. h4 {[%clk 0:01:25.8]} 41... Rc2+ {[%clk
0:00:56.8]} 42. Kb5 {[%clk 0:01:26.2]} 42... Rg2 {[%clk 0:00:54.8]} 43. Ka6
{[%clk 0:01:16]} 43... Rxg3 {[%clk 0:00:50.8]} 44. Kxa7 {[%clk 0:01:13.8]} 44...
Rb3 {[%clk 0:00:46.1]} 45. Rd4 {[%clk 0:01:13.6]} 45... f6 {[%clk 0:00:35.9]}
46. Kb7 {[%clk 0:01:13.5]} 46... Ra3 {[%clk 0:00:30.2]} 47. a6 {[%clk
0:01:13.2]} 47... g5 {[%clk 0:00:29.5]} 48. a7 {[%clk 0:01:12.5]} 48... h5
{[%clk 0:00:20.6]} 49. hxg5 {[%clk 0:01:12.2]} 49... fxg5 {[%clk 0:00:19.4]} 50.
Rd5 {[%clk 0:01:12.7]} 50... g4 {[%clk 0:00:16.5]} 51. Rxh5 {[%clk 0:01:13.6]}
51... Kxd6 {[%clk 0:00:16.8]} 52. Rg5 {[%clk 0:01:10.4]} 52... Ra4 {[%clk
0:00:13.2]} 53. b5 {[%clk 0:01:07.7]} 53... Kd7 {[%clk 0:00:09.4]} 54. Rxg4
{[%clk 0:01:02.7]} 54... Rxg4 {[%clk 0:00:06.5]} 55. a8=Q {[%clk 0:01:02.5]}
55... Rg7 {[%clk 0:00:06.6]} 56. Qa1 {[%clk 0:01:00.1]} 56... Re7 {[%clk
0:00:06]} 57. Qf6 {[%clk 0:00:55]} 57... Ke8+ {[%clk 0:00:02.3]} 58. Qxe7+
{[%clk 0:00:54.9]} 58... Kxe7 {[%clk 0:00:02.8]} 59. Kc7 {[%clk 0:00:55.8]}
59... Ke6 {[%clk 0:00:03.1]} 60. b6 {[%clk 0:00:56.7]} 60... Kd5 {[%clk
0:00:03.8]} 61. b7 {[%clk 0:00:57.6]} 61... Kc5 {[%clk 0:00:04.5]} 62. b8=Q
{[%clk 0:00:58.5]} 62... Kd4 {[%clk 0:00:05.1]} 63. Qd8+ {[%clk 0:00:59.4]}
63... Ke5 {[%clk 0:00:05.1]} 64. Qd6+ {[%clk 0:01:00.3]} 64... Kf5 {[%clk
0:00:05.2]} 65. Qe7 {[%clk 0:00:59.8]} 65... Kg4 {[%clk 0:00:06.1]} 66. Qf6
{[%clk 0:00:59.8]} 66... Kh3 {[%clk 0:00:07]} 67. Qg5 {[%clk 0:00:59.5]} 67...
Kh2 {[%clk 0:00:07]} 68. Qg4 {[%clk 0:01:00]} 68... Kh1 {[%clk 0:00:07.9]} 69.
Kd6 {[%clk 0:01:00.7]} 69... Kh2 {[%clk 0:00:08.8]} 70. Ke5 {[%clk 0:01:01.6]}
70... Kh1 {[%clk 0:00:09.6]} 71. Kf4 {[%clk 0:01:02.5]} 71... Kh2 {[%clk
0:00:10.4]} 72. Kf3 {[%clk 0:01:03.4]} 72... Kh1 {[%clk 0:00:11.3]} 73. Qg2#
{[%clk 0:01:04.3]} 1-0

[Event "*** Titled Tuesday Blitz"]
[Site "Chess.com"]
[Date "2020.04.21"]
[Round "7"]
[White "Volodar_Murzin"]
[Black "Alexander_Donchenko"]
[Result "1/2-1/2"]
[WhiteElo "2646"]
[BlackElo "2798"]
[TimeControl "180+1"]
[EndTime "11:22:35 PDT"]
[Termination "Game drawn by repetition"]

1. d4 {[%clk 0:03:00.9]} 1... Nf6 {[%clk 0:02:59.6]} 2. Nf3 {[%clk 0:03:00.4]}
2... e6 {[%clk 0:02:59.6]} 3. Bf4 {[%clk 0:02:58.7]} 3... c5 {[%clk 0:02:59]} 4.
e3 {[%clk 0:02:59]} 4... Qb6 {[%clk 0:02:59]} 5. Na3 {[%clk 0:02:53.7]} 5...
cxd4 {[%clk 0:02:59]} 6. Nc4 {[%clk 0:02:36.8]} 6... Bb4+ {[%clk 0:02:40.6]} 7.
Nfd2 {[%clk 0:02:13.9]} 7... Qc6 {[%clk 0:02:24.9]} 8. exd4 {[%clk 0:02:09.9]}
8... O-O {[%clk 0:02:22.6]} 9. c3 {[%clk 0:02:07.1]} 9... Be7 {[%clk 0:02:23.1]}
10. Ne5 {[%clk 0:02:01.3]} 10... Qd5 {[%clk 0:02:06.2]} 11. Qf3 {[%clk 0:01:42]}
11... Nc6 {[%clk 0:01:56.5]} 12. Bc4 {[%clk 0:01:29.6]} 12... Qxf3 {[%clk
0:01:50.3]} 13. Nexf3 {[%clk 0:01:25.6]} 13... d5 {[%clk 0:01:46.8]} 14. Bb5
{[%clk 0:01:24.9]} 14... Bd7 {[%clk 0:01:45.3]} 15. O-O {[%clk 0:01:18.4]} 15...
Rfc8 {[%clk 0:01:43.4]} 16. Rfe1 {[%clk 0:01:12.6]} 16... Ne8 {[%clk 0:01:41.1]}
17. a4 {[%clk 0:00:53.8]} 17... Bd6 {[%clk 0:01:36]} 18. Bxc6 {[%clk 0:00:26.6]}
18... Bxc6 {[%clk 0:01:30.7]} 19. Ne5 {[%clk 0:00:24.2]} 19... Rab8 {[%clk
0:01:23.1]} 20. Bg3 {[%clk 0:00:22.1]} 20... Kf8 {[%clk 0:01:09.9]} 21. Nb3
{[%clk 0:00:19.7]} 21... Ke7 {[%clk 0:01:03.6]} 22. Na5 {[%clk 0:00:19.1]} 22...
Bd7 {[%clk 0:00:52.5]} 23. Nd3 {[%clk 0:00:18.8]} 23... b6 {[%clk 0:00:47.3]}
24. Nb3 {[%clk 0:00:18.3]} 24... Bxg3 {[%clk 0:00:47.1]} 25. hxg3 {[%clk
0:00:18.2]} 25... Nd6 {[%clk 0:00:47.8]} 26. Nb4 {[%clk 0:00:17.4]} 26... Nc4
{[%clk 0:00:44.5]} 27. Re2 {[%clk 0:00:15]} 27... Kf8 {[%clk 0:00:40.9]} 28. a5
{[%clk 0:00:14.5]} 28... Be8 {[%clk 0:00:23.1]} 29. Rc2 {[%clk 0:00:13.1]} 29...
g5 {[%clk 0:00:21.5]} 30. axb6 {[%clk 0:00:11]} 30... axb6 {[%clk 0:00:22.4]}
31. Nd2 {[%clk 0:00:11.3]} 31... Nd6 {[%clk 0:00:18.6]} 32. Rcc1 {[%clk
0:00:10.8]} 32... Ra8 {[%clk 0:00:18.5]} 33. f3 {[%clk 0:00:09.6]} 33... f6
{[%clk 0:00:17.3]} 34. Kf2 {[%clk 0:00:09.7]} 34... Bg6 {[%clk 0:00:17.7]} 35.
g4 {[%clk 0:00:10.1]} 35... h5 {[%clk 0:00:16.3]} 36. gxh5 {[%clk 0:00:09.9]}
36... Bxh5 {[%clk 0:00:17.2]} 37. Nf1 {[%clk 0:00:10]} 37... Bg6 {[%clk
0:00:17]} 38. Nd2 {[%clk 0:00:09.5]} 38... Ke7 {[%clk 0:00:16.6]} 39. Re1 {[%clk
0:00:09.6]} 39... Kd7 {[%clk 0:00:16.8]} 40. Kg3 {[%clk 0:00:09.7]} 40... Nf5+
{[%clk 0:00:15.5]} 41. Kf2 {[%clk 0:00:09.9]} 41... Nd6 {[%clk 0:00:15.7]} 42.
Rh1 {[%clk 0:00:10.2]} 42... Rxa1 {[%clk 0:00:13.4]} 43. Rxa1 {[%clk 0:00:10]}
43... Kc7 {[%clk 0:00:10.7]} 44. Ra7+ {[%clk 0:00:09.8]} 44... Nb7 {[%clk
0:00:11.4]} 45. Na6+ {[%clk 0:00:09.8]} 45... Kc6 {[%clk 0:00:12]} 46. Nb4+
{[%clk 0:00:09.9]} 46... Kc7 {[%clk 0:00:12.7]} 47. Na6+ {[%clk 0:00:10.1]}
47... Kc6 {[%clk 0:00:13.4]} 48. Nb4+ {[%clk 0:00:08.3]} 48... Kc7 {[%clk
0:00:13.9]} 1/2-1/2

[Event "*** Titled Tuesday Blitz"]
[Site "Chess.com"]
[Date "2020.04.21"]
[Round "7"]
[White "obliviate12"]
[Black "FLamps8"]
[Result "1-0"]
[WhiteElo "2766"]
[BlackElo "2530"]
[TimeControl "180+1"]
[EndTime "11:22:35 PDT"]
[Termination "obliviate12 won by resignation"]

1. e4 {[%clk 0:03:00.9]} 1... c6 {[%clk 0:02:58.3]} 2. d4 {[%clk 0:02:59.1]}
2... d5 {[%clk 0:02:59.2]} 3. e5 {[%clk 0:02:59.6]} 3... Bf5 {[%clk 0:02:58]} 4.
Nd2 {[%clk 0:03:00.1]} 4... e6 {[%clk 0:02:57.4]} 5. Nb3 {[%clk 0:03:00.6]} 5...
Nd7 {[%clk 0:02:56.8]} 6. Nf3 {[%clk 0:02:58.5]} 6... Ne7 {[%clk 0:02:54.4]} 7.
Be2 {[%clk 0:02:58]} 7... h6 {[%clk 0:02:53.7]} 8. O-O {[%clk 0:02:56.7]} 8...
g5 {[%clk 0:02:52.5]} 9. a4 {[%clk 0:02:57]} 9... Qc7 {[%clk 0:02:45.2]} 10. a5
{[%clk 0:02:54.1]} 10... a6 {[%clk 0:02:43.6]} 11. Bd2 {[%clk 0:02:52.8]} 11...
c5 {[%clk 0:02:36.9]} 12. Nxc5 {[%clk 0:02:15.6]} 12... Nxc5 {[%clk 0:02:35.4]}
13. dxc5 {[%clk 0:02:16.5]} 13... Nc6 {[%clk 0:02:36]} 14. Bc3 {[%clk 0:02:08]}
14... Bxc5 {[%clk 0:02:31.4]} 15. Bd3 {[%clk 0:02:06.3]} 15... O-O-O {[%clk
0:02:25.2]} 16. Bxf5 {[%clk 0:02:03.7]} 16... exf5 {[%clk 0:02:26.1]} 17. Qd3
{[%clk 0:02:03.5]} 17... f4 {[%clk 0:02:21]} 18. Rfe1 {[%clk 0:01:53.5]} 18...
d4 {[%clk 0:01:53.3]} 19. Bd2 {[%clk 0:01:51.5]} 19... Rhe8 {[%clk 0:01:51.4]}
20. h3 {[%clk 0:01:44.6]} 20... Kb8 {[%clk 0:01:34.4]} 21. Qf5 {[%clk
0:01:43.9]} 21... Re6 {[%clk 0:01:32.6]} 22. Re2 {[%clk 0:01:40.2]} 22... Rde8
{[%clk 0:01:27.2]} 23. Rae1 {[%clk 0:01:34.9]} 23... f6 {[%clk 0:01:27.2]} 24.
h4 {[%clk 0:01:21.4]} 24... Nxe5 {[%clk 0:01:16]} 25. Nxe5 {[%clk 0:00:41.3]}
25... Rxe5 {[%clk 0:01:16.9]} 26. Rxe5 {[%clk 0:00:41.3]} 26... Rxe5 {[%clk
0:00:53]} 27. Qxf6 {[%clk 0:00:40.7]} 27... Rxe1+ {[%clk 0:00:53.1]} 28. Bxe1
{[%clk 0:00:41.6]} 28... Qe7 {[%clk 0:00:53.7]} 29. Qxe7 {[%clk 0:00:38.3]}
29... Bxe7 {[%clk 0:00:54.6]} 30. h5 {[%clk 0:00:37.1]} 30... Kc7 {[%clk
0:00:47.4]} 31. Kf1 {[%clk 0:00:37.2]} 31... Kc6 {[%clk 0:00:45.8]} 32. Ke2
{[%clk 0:00:37.2]} 32... Kd5 {[%clk 0:00:29.5]} 33. Kd3 {[%clk 0:00:36.7]} 33...
Bd6 {[%clk 0:00:22.4]} 34. f3 {[%clk 0:00:36.2]} 34... Be7 {[%clk 0:00:15.4]}
35. g4 {[%clk 0:00:29.2]} 35... fxg3 {[%clk 0:00:10.8]} 36. Bxg3 {[%clk
0:00:29.1]} 36... Bd8 {[%clk 0:00:11.1]} 37. Be1 {[%clk 0:00:26.1]} 37... b6
{[%clk 0:00:08.2]} 38. Bb4 {[%clk 0:00:20.9]} 38... bxa5 {[%clk 0:00:03.8]} 39.
Bf8 {[%clk 0:00:20.7]} 39... Ke6 {[%clk 0:00:03.3]} 40. Bxh6 {[%clk 0:00:16.9]}
40... Kf5 {[%clk 0:00:03.7]} 41. Bg7 {[%clk 0:00:16]} 41... Be7 {[%clk
0:00:01.9]} 42. Bxd4 {[%clk 0:00:14.2]} 42... Ke6 {[%clk 0:00:01.8]} 43. h6
{[%clk 0:00:13.7]} 1-0

[Event "*** Titled Tuesday Blitz"]
[Site "Chess.com"]
[Date "2020.04.21"]
[Round "7"]
[White "Riptide27"]
[Black "shyam"]
[Result "0-1"]
[WhiteElo "2486"]
[BlackElo "2654"]
[TimeControl "180+1"]
[EndTime "11:22:39 PDT"]
[Termination "shyam won by resignation"]

1. d4 {[%clk 0:03:00.9]} 1... Nf6 {[%clk 0:02:57.9]} 2. c4 {[%clk 0:03:00.6]}
2... c5 {[%clk 0:02:53.6]} 3. d5 {[%clk 0:03:00.2]} 3... g6 {[%clk 0:02:54.2]}
4. Nc3 {[%clk 0:02:58.8]} 4... Bg7 {[%clk 0:02:55.1]} 5. e4 {[%clk 0:02:58.6]}
5... O-O {[%clk 0:02:56]} 6. Bd3 {[%clk 0:02:58.1]} 6... d6 {[%clk 0:02:56.3]}
7. Nge2 {[%clk 0:02:55.5]} 7... e6 {[%clk 0:02:56.8]} 8. O-O {[%clk 0:02:53.5]}
8... Na6 {[%clk 0:02:54.3]} 9. Bg5 {[%clk 0:02:45.4]} 9... h6 {[%clk 0:02:53.6]}
10. Bd2 {[%clk 0:02:41.6]} 10... Nc7 {[%clk 0:02:48.6]} 11. Qc1 {[%clk
0:02:38.8]} 11... Kh7 {[%clk 0:02:48.2]} 12. Kh1 {[%clk 0:02:33.1]} 12... exd5
{[%clk 0:02:42.7]} 13. exd5 {[%clk 0:02:28.9]} 13... Ng4 {[%clk 0:02:38.5]} 14.
h3 {[%clk 0:02:06.4]} 14... Qh4 {[%clk 0:02:22.4]} 15. Kg1 {[%clk 0:01:56.9]}
15... Ne5 {[%clk 0:02:20.9]} 16. Qc2 {[%clk 0:01:56.9]} 16... Nxd3 {[%clk
0:02:06.7]} 17. Qxd3 {[%clk 0:01:56.1]} 17... Bf5 {[%clk 0:02:07.6]} 18. Qg3
{[%clk 0:01:51.9]} 18... Qxc4 {[%clk 0:02:03.3]} 19. Qxd6 {[%clk 0:01:50.2]}
19... Rac8 {[%clk 0:01:42.2]} 20. Rac1 {[%clk 0:01:43.4]} 20... Rfd8 {[%clk
0:01:37.2]} 21. Qe7 {[%clk 0:01:43]} 21... Nxd5 {[%clk 0:01:37.1]} 22. Qxf7
{[%clk 0:01:30.9]} 22... Rd7 {[%clk 0:01:20.6]} 23. Nxd5 {[%clk 0:01:30.9]}
23... Qxd5 {[%clk 0:01:19]} 24. Qxd5 {[%clk 0:01:29.4]} 24... Rxd5 {[%clk
0:01:19.9]} 25. Bc3 {[%clk 0:01:28.6]} 25... Bf8 {[%clk 0:01:10.6]} 26. Ng3
{[%clk 0:01:21.9]} 26... Bd3 {[%clk 0:01:08.1]} 27. Rfe1 {[%clk 0:01:21.1]}
27... b5 {[%clk 0:01:06.7]} 28. Ne4 {[%clk 0:01:20.9]} 28... Bxe4 {[%clk
0:01:02.3]} 29. Rxe4 {[%clk 0:01:21.5]} 29... Rcd8 {[%clk 0:01:03.2]} 30. Rce1
{[%clk 0:01:12.6]} 30... Rd1 {[%clk 0:00:57.3]} 31. g4 {[%clk 0:01:10.3]} 31...
Kg8 {[%clk 0:00:39.8]} 32. Kg2 {[%clk 0:00:57.1]} 32... Rxe1 {[%clk 0:00:40]}
33. Rxe1 {[%clk 0:00:56.2]} 33... Kf7 {[%clk 0:00:40.9]} 34. Re3 {[%clk
0:00:50.6]} 34... b4 {[%clk 0:00:38.7]} 35. Rf3+ {[%clk 0:00:50.4]} 35... Kg8
{[%clk 0:00:37.2]} 36. Bf6 {[%clk 0:00:49.5]} 36... Rd2 {[%clk 0:00:35.5]} 37.
h4 {[%clk 0:00:42]} 37... c4 {[%clk 0:00:32.9]} 38. g5 {[%clk 0:00:41.1]} 38...
hxg5 {[%clk 0:00:32.1]} 39. hxg5 {[%clk 0:00:42]} 39... Bc5 {[%clk 0:00:30.7]}
40. Rf4 {[%clk 0:00:34.7]} 40... Rc2 {[%clk 0:00:29.8]} 41. Kg3 {[%clk
0:00:30.9]} 41... Bd6 {[%clk 0:00:28.7]} 42. f3 {[%clk 0:00:29.4]} 42... a5
{[%clk 0:00:27]} 43. Kg4 {[%clk 0:00:28.1]} 43... Bxf4 {[%clk 0:00:27.1]} 44.
Kxf4 {[%clk 0:00:26.3]} 44... c3 {[%clk 0:00:23.9]} 45. bxc3 {[%clk 0:00:26.1]}
45... bxc3 {[%clk 0:00:24.1]} 46. Ke3 {[%clk 0:00:27]} 46... Rxa2 {[%clk
0:00:23.8]} 47. Bxc3 {[%clk 0:00:26]} 47... Kf7 {[%clk 0:00:24.3]} 48. Kd4
{[%clk 0:00:24.2]} 48... Ke6 {[%clk 0:00:24.8]} 49. Ke4 {[%clk 0:00:24.1]} 49...
Ra4+ {[%clk 0:00:24.1]} 50. Ke3 {[%clk 0:00:23.1]} 50... Kf5 {[%clk 0:00:25]}
51. f4 {[%clk 0:00:23.4]} 51... Re4+ {[%clk 0:00:23.4]} 52. Kf3 {[%clk 0:00:23]}
52... Rxf4+ {[%clk 0:00:23]} 53. Kg3 {[%clk 0:00:22.2]} 53... a4 {[%clk
0:00:23.2]} 0-1

[Event "*** Titled Tuesday Blitz"]
[Site "Chess.com"]
[Date "2020.04.21"]
[Round "7"]
[White "KinKaiser"]
[Black "Firegrizzly"]
[Result "0-1"]
[WhiteElo "2484"]
[BlackElo "2674"]
[TimeControl "180+1"]
[EndTime "11:22:40 PDT"]
[Termination "Firegrizzly won on time"]

1. d4 {[%clk 0:02:58.7]} 1... e6 {[%clk 0:03:00.9]} 2. Nf3 {[%clk 0:02:58.4]}
2... Nf6 {[%clk 0:03:00.2]} 3. Bf4 {[%clk 0:02:58.1]} 3... b6 {[%clk 0:02:59.1]}
4. e3 {[%clk 0:02:58.2]} 4... Bb7 {[%clk 0:03:00]} 5. h3 {[%clk 0:02:57.8]} 5...
g6 {[%clk 0:02:59.4]} 6. Be2 {[%clk 0:02:57.7]} 6... Bg7 {[%clk 0:02:59.6]} 7.
O-O {[%clk 0:02:57.6]} 7... O-O {[%clk 0:03:00.1]} 8. Bh2 {[%clk 0:02:57.8]}
8... d6 {[%clk 0:03:00.4]} 9. a4 {[%clk 0:02:57.2]} 9... a5 {[%clk 0:02:58.3]}
10. c3 {[%clk 0:02:55.4]} 10... Nbd7 {[%clk 0:02:58.5]} 11. Na3 {[%clk
0:02:55.2]} 11... Qe7 {[%clk 0:02:58.1]} 12. Nb5 {[%clk 0:02:54.7]} 12... Rac8
{[%clk 0:02:57.3]} 13. Na7 {[%clk 0:02:52.8]} 13... Ra8 {[%clk 0:02:57.2]} 14.
Nb5 {[%clk 0:02:53.1]} 14... Rac8 {[%clk 0:02:55]} 15. Na7 {[%clk 0:02:53]}
15... Rcd8 {[%clk 0:02:54.9]} 16. Nb5 {[%clk 0:02:52.9]} 16... Nb8 {[%clk
0:02:54.2]} 17. Nd2 {[%clk 0:02:48.5]} 17... Ne4 {[%clk 0:02:49.7]} 18. Nxe4
{[%clk 0:02:37.5]} 18... Bxe4 {[%clk 0:02:50.6]} 19. Bf3 {[%clk 0:02:37.6]}
19... Bxf3 {[%clk 0:02:46.3]} 20. Qxf3 {[%clk 0:02:37.1]} 20... f5 {[%clk
0:02:44.8]} 21. Rfe1 {[%clk 0:02:12.2]} 21... g5 {[%clk 0:02:43.7]} 22. Qb7
{[%clk 0:02:05]} 22... Rd7 {[%clk 0:02:38.2]} 23. Qf3 {[%clk 0:01:57.2]} 23...
Qf7 {[%clk 0:02:36.7]} 24. b4 {[%clk 0:01:50.2]} 24... h5 {[%clk 0:02:34.7]} 25.
bxa5 {[%clk 0:01:44.5]} 25... bxa5 {[%clk 0:02:32.5]} 26. Rab1 {[%clk
0:01:36.1]} 26... g4 {[%clk 0:02:27.6]} 27. hxg4 {[%clk 0:01:34.5]} 27... hxg4
{[%clk 0:02:27.1]} 28. Qe2 {[%clk 0:01:31.2]} 28... Qh5 {[%clk 0:02:16.1]} 29.
Bg3 {[%clk 0:01:29.6]} 29... Bf6 {[%clk 0:02:08.3]} 30. Qc4 {[%clk 0:01:25.6]}
30... d5 {[%clk 0:02:00.2]} 31. Qd3 {[%clk 0:01:19.4]} 31... Bh4 {[%clk
0:01:49.8]} 32. Kf1 {[%clk 0:01:14.7]} 32... c6 {[%clk 0:01:39.2]} 33. Na3
{[%clk 0:01:11.4]} 33... Bxg3 {[%clk 0:01:39.2]} 34. fxg3 {[%clk 0:01:11.4]}
34... Rh7 {[%clk 0:01:38.3]} 35. Kf2 {[%clk 0:01:09.9]} 35... Nd7 {[%clk
0:01:37.6]} 36. Rh1 {[%clk 0:00:53.6]} 36... Qxh1 {[%clk 0:01:37]} 37. Rxh1
{[%clk 0:00:54]} 37... Rxh1 {[%clk 0:01:37.2]} 38. Qa6 {[%clk 0:00:51.9]} 38...
Nf6 {[%clk 0:01:36.5]} 39. Qxc6 {[%clk 0:00:49.7]} 39... Ne4+ {[%clk 0:01:37.4]}
40. Ke2 {[%clk 0:00:48.8]} 40... Nxg3+ {[%clk 0:01:35.8]} 41. Kd2 {[%clk
0:00:46.3]} 41... Ne4+ {[%clk 0:01:32.1]} 42. Kc2 {[%clk 0:00:46.5]} 42... Kf7
{[%clk 0:01:28.2]} 43. Qd7+ {[%clk 0:00:45.8]} 43... Kf6 {[%clk 0:01:27.2]} 44.
Nb5 {[%clk 0:00:46.1]} 44... Rh2 {[%clk 0:01:24.2]} 45. Nc7 {[%clk 0:00:46]}
45... Rxg2+ {[%clk 0:01:23.6]} 46. Kb3 {[%clk 0:00:46.4]} 46... Nd2+ {[%clk
0:01:13.1]} 47. Kc2 {[%clk 0:00:45.5]} 47... Ne4+ {[%clk 0:01:06.6]} 48. Kb3
{[%clk 0:00:34.7]} 48... Ng5 {[%clk 0:01:05.6]} 49. Ne8+ {[%clk 0:00:31.7]}
49... Rxe8 {[%clk 0:01:00.7]} 50. Qxe8 {[%clk 0:00:32.6]} 50... Nf7 {[%clk
0:01:00.2]} 51. Qb8 {[%clk 0:00:25.4]} 51... g3 {[%clk 0:00:57.9]} 52. Qf4
{[%clk 0:00:23.5]} 52... Rg1 {[%clk 0:00:57.3]} 53. Qh4+ {[%clk 0:00:22.4]}
53... Kg6 {[%clk 0:00:54.6]} 54. Qe7 {[%clk 0:00:21]} 54... g2 {[%clk
0:00:53.9]} 55. Qxe6+ {[%clk 0:00:21.2]} 55... Kg7 {[%clk 0:00:53.3]} 56. Qxf5
{[%clk 0:00:13.6]} 56... Kf8 {[%clk 0:00:44.4]} 57. Qc8+ {[%clk 0:00:12.4]}
57... Ke7 {[%clk 0:00:43.5]} 58. Qg4 {[%clk 0:00:12.2]} 58... Rb1+ {[%clk
0:00:41.1]} 59. Ka2 {[%clk 0:00:05.8]} 59... g1=Q {[%clk 0:00:42]} 0-1

[Event "*** Titled Tuesday Blitz"]
[Site "Chess.com"]
[Date "2020.04.21"]
[Round "7"]
[White "BIG_Pirate"]
[Black "RiskyDecision"]
[Result "1-0"]
[WhiteElo "2409"]
[BlackElo "2525"]
[TimeControl "180+1"]
[EndTime "11:22:40 PDT"]
[Termination "BIG_Pirate won on time"]

1. Nf3 {[%clk 0:03:00.9]} 1... f5 {[%clk 0:02:59.6]} 2. d4 {[%clk 0:03:00.1]}
2... Nf6 {[%clk 0:02:59.6]} 3. g3 {[%clk 0:03:00.7]} 3... g6 {[%clk 0:02:59.9]}
4. Bg2 {[%clk 0:03:01.1]} 4... Bg7 {[%clk 0:03:00.4]} 5. O-O {[%clk 0:03:01.5]}
5... O-O {[%clk 0:03:01]} 6. b3 {[%clk 0:03:02.1]} 6... Ne4 {[%clk 0:02:55.8]}
7. Bb2 {[%clk 0:02:49.6]} 7... d6 {[%clk 0:02:51]} 8. Nfd2 {[%clk 0:02:43.8]}
8... Nxd2 {[%clk 0:02:45.3]} 9. Qxd2 {[%clk 0:02:44.7]} 9... Nc6 {[%clk
0:02:42.4]} 10. Rd1 {[%clk 0:02:12.5]} 10... Bd7 {[%clk 0:02:27.8]} 11. c4
{[%clk 0:02:10.2]} 11... e5 {[%clk 0:02:22.6]} 12. dxe5 {[%clk 0:02:08]} 12...
Nxe5 {[%clk 0:02:14.9]} 13. Bxb7 {[%clk 0:02:02.3]} 13... Rb8 {[%clk 0:02:12.8]}
14. Bg2 {[%clk 0:02:02.7]} 14... Be6 {[%clk 0:01:58.3]} 15. Nc3 {[%clk
0:02:00.9]} 15... Kh8 {[%clk 0:01:53.5]} 16. Nd5 {[%clk 0:02:00.3]} 16... Qd7
{[%clk 0:01:30.3]} 17. Bd4 {[%clk 0:01:49]} 17... a6 {[%clk 0:01:24.6]} 18. Rac1
{[%clk 0:01:47.4]} 18... h5 {[%clk 0:01:13.8]} 19. h4 {[%clk 0:01:37.2]} 19...
Kh7 {[%clk 0:01:14.1]} 20. Nf4 {[%clk 0:01:29.6]} 20... Bf7 {[%clk 0:01:13.8]}
21. Qc3 {[%clk 0:01:23.1]} 21... c5 {[%clk 0:01:05.2]} 22. Bxe5 {[%clk
0:01:18.6]} 22... Bxe5 {[%clk 0:01:05.2]} 23. Qxe5 {[%clk 0:01:18.4]} 23... dxe5
{[%clk 0:01:05.6]} 24. Rxd7 {[%clk 0:01:18.9]} 24... exf4 {[%clk 0:01:06.2]} 25.
gxf4 {[%clk 0:01:19.3]} 25... Kg8 {[%clk 0:01:01.5]} 26. Rcd1 {[%clk 0:01:11.6]}
26... a5 {[%clk 0:00:57]} 27. Bd5 {[%clk 0:01:01]} 27... Bxd5 {[%clk 0:00:52.5]}
28. R1xd5 {[%clk 0:00:59.8]} 28... Rfc8 {[%clk 0:00:42.1]} 29. R5d6 {[%clk
0:00:58.5]} 29... a4 {[%clk 0:00:29.4]} 30. Rxg6+ {[%clk 0:00:57.9]} 30... Kf8
{[%clk 0:00:30]} 31. Rh6 {[%clk 0:00:57.2]} 31... Kg8 {[%clk 0:00:27.1]} 32.
Rxh5 {[%clk 0:00:43.9]} 32... axb3 {[%clk 0:00:26.1]} 33. axb3 {[%clk
0:00:44.8]} 33... Rxb3 {[%clk 0:00:25.9]} 34. Rg5+ {[%clk 0:00:43.9]} 34... Kh8
{[%clk 0:00:24.5]} 35. Rh5+ {[%clk 0:00:43.1]} 35... Kg8 {[%clk 0:00:24.2]} 36.
Rxf5 {[%clk 0:00:40.5]} 36... Rh3 {[%clk 0:00:18.7]} 37. Rg5+ {[%clk 0:00:34.6]}
37... Kh8 {[%clk 0:00:18.4]} 38. Rh5+ {[%clk 0:00:32.7]} 38... Kg8 {[%clk
0:00:16.4]} 39. Rdd5 {[%clk 0:00:33.1]} 39... Rc6 {[%clk 0:00:13.1]} 40. Kg2
{[%clk 0:00:31.4]} 40... Rc3 {[%clk 0:00:12.2]} 41. Rxc5 {[%clk 0:00:30.5]}
41... Re6 {[%clk 0:00:09.7]} 42. e3 {[%clk 0:00:27.2]} 42... Kf7 {[%clk
0:00:08.7]} 43. Rhf5+ {[%clk 0:00:24.1]} 43... Ke7 {[%clk 0:00:08.3]} 44. Rfe5
{[%clk 0:00:22.8]} 44... Kd6 {[%clk 0:00:07.4]} 45. Rcd5+ {[%clk 0:00:21.5]}
45... Ke7 {[%clk 0:00:07]} 46. Rxe6+ {[%clk 0:00:20.9]} 46... Kxe6 {[%clk
0:00:07.9]} 47. Re5+ {[%clk 0:00:21.5]} 47... Kf6 {[%clk 0:00:08.2]} 48. c5
{[%clk 0:00:22.4]} 48... Rc2 {[%clk 0:00:07.4]} 49. Kf3 {[%clk 0:00:22.9]} 49...
Kg6 {[%clk 0:00:07.6]} 50. h5+ {[%clk 0:00:23.8]} 50... Kh6 {[%clk 0:00:07.4]}
51. Kg3 {[%clk 0:00:23.9]} 51... Rc1 {[%clk 0:00:07.3]} 52. Re6+ {[%clk
0:00:24]} 52... Kxh5 {[%clk 0:00:06.8]} 53. c6 {[%clk 0:00:24.9]} 53... Rc3
{[%clk 0:00:02.7]} 54. Kf3 {[%clk 0:00:24.4]} 1-0